bitfinex/quotes_SOLUSD_20251002
["timestamp","ask_amount","ask_price","bid_price","bid_amount"]
[1759369140756,17.66778143,221.84,221.78,0.67]
[1759369141060,15.77726222,221.84,221.78,2.56051921]
[1759369141376,1.89051921,221.83,221.76,1.89051921]
[1759369141777,1.79571343,221.83,221.76,1.89051921]
[1759369141958,1.79571343,221.83,221.77,0.67]
[1759369142157,98.82045623,221.85,221.8,1.89051921]
[1759369142373,98.82045623,221.85,221.82,1.89051921]
[1759369142589,98.82045623,221.85,221.83,0.67]
[1759369142903,103.32801133,221.85,221.83,0.67]
[1759369143914,11.40578355,221.85,221.84,0.67]
[1759369144904,11.40578355,221.85,221.84,2.56051921]
[1759369145480,11.40578355,221.85,221.84,7.06827254]
[1759369146075,87.41467268,221.93,221.87,20.8]
[1759369146394,87.41467268,221.93,221.89,1.89051921]
[1759369146580,87.41467268,221.93,221.89,2.56051921]
[1759369146978,91.92064083,221.93,221.89,2.56051921]
[1759369147173,4.50596815,221.93,221.9,2.56051921]
[1759369147706,4.6056533,221.95,221.91,0.67]
[1759369147907,4.6056533,221.95,221.92,0.67]
[1759369148276,4.6056533,221.95,221.93,1.89051921]
[1759369148277,0.1,221.95,221.93,1.89051921]
[1759369148473,4.60553083,221.95,221.93,1.89051921]
[1759369148670,4.60553083,221.95,221.91,1.89051921]
[1759369149180,4.60553083,221.95,221.92,0.67]
[1759369150876,4.60553083,221.95,221.93,0.67]
[1759369151480,4.60553083,221.95,221.94,0.67]
[1759369151799,4.60553083,221.95,221.92,1.89051921]
[1759369152104,4.60553083,221.95,221.92,2.56051921]
[1759369152305,4.60553083,221.95,221.92,0.67]
[1759369152490,4.60553083,221.95,221.91,1.89051921]
[1759369152690,4.60553083,221.95,221.92,2.56051921]
[1759369153520,4.60553083,221.95,221.92,1.89051921]
[1759369153801,4.60553083,221.95,221.9,34.14051921]
[1759369154005,4.60553083,221.95,221.91,0.67]
[1759369154307,15.86932898,221.95,221.9,1.89051921]
[1759369154510,15.86932898,221.95,221.9,2.56051921]
[1759369155292,15.86932898,221.95,221.91,0.67]
[1759369155683,15.86932898,221.95,221.89,32.25]
[1759369155885,15.86932898,221.95,221.9,1.89051921]
[1759369156188,15.86932898,221.95,221.9,2.56051921]
[1759369157301,15.86932898,221.95,221.91,0.67]
[1759369157508,15.86932898,221.95,221.92,0.67]
[1759369157706,15.86932898,221.95,221.91,1.89051921]
[1759369158007,4.60553083,221.95,221.92,2.56051921]
[1759369158212,4.60553083,221.95,221.93,0.67]
[1759369158391,4.60553083,221.95,221.93,2.56051921]
[1759369158912,4.60553083,221.95,221.94,0.67]
[1759369161226,0.1,221.95,221.94,0.67]
[1759369162921,4.60551926,221.95,221.94,0.67]
[1759369165211,4.60551926,221.95,221.91,1.89051921]
[1759369165409,4.60551926,221.95,221.92,0.68]
[1759369166212,4.60551926,221.95,221.93,0.68]
[1759369166414,0.1,221.95,221.93,3.62888698]
[1759369166612,0.1,221.95,221.94,0.68]
[1759369166814,0.1,221.95,221.94,3.62888698]
[1759369167497,4.60551926,221.95,221.93,3.62888698]
[1759369167709,4.60551926,221.95,221.91,0.68]
[1759369168019,4.60551926,221.95,221.91,34.50888698]
[1759369168221,0.1,221.95,221.92,3.62888698]
[1759369168426,0.1,221.95,221.93,3.62888698]
[1759369168729,0.1,221.95,221.94,2.94888698]
[1759369168898,0.1,221.95,221.94,3.62888698]
[1759369169807,0.1,221.95,221.94,0.68]
[1759369170012,0.1,221.95,221.94,3.62888698]
[1759369171905,0.1,221.95,221.94,28.93460924]
[1759369173297,0.1,221.95,221.94,26.2700454]
[1759369173503,0.1,221.95,221.94,40.09540759]
[1759369175797,0.1,221.97,221.94,43.04429457]
[1759369176008,0.1,221.98,221.96,6.1820971]
[1759369176199,0.1,222.08,222.01,20.8]
[1759369176410,0.1,222.08,222.07,2.94888698]
[1759369176599,0.1,222.08,222.05,2.94888698]
[1759369177207,4.60300443,222.08,222.02,32.24]
[1759369177407,4.60300443,222.08,222.05,2.94888698]
[1759369178310,4.60300443,222.08,222.06,2.94888698]
[1759369178512,4.60300443,222.08,222.05,2.94888698]
[1759369178717,4.60300443,222.08,222.05,34.50888698]
[1759369179019,4.60300443,222.08,222.05,31.56]
[1759369179325,4.60300443,222.08,222.05,34.50888698]
[1759369179624,2.94888698,222.07,222.01,34.50888698]
[1759369180017,15.86020904,222.08,222.03,2.94888698]
[1759369180195,15.86020904,222.08,222.03,3.62888698]
[1759369180699,15.86020904,222.08,222.04,2.94888698]
[1759369181531,15.86020904,222.08,222.03,2.94888698]
[1759369181828,15.86020904,222.08,222.04,2.94888698]
[1759369182229,15.86020904,222.08,222.03,2.94888698]
[1759369182726,18.80909602,222.08,222.02,2.94888698]
[1759369183231,2.94888698,222.07,222.01,34.48888698]
[1759369183413,2.94888698,222.07,222.01,31.54]
[1759369183613,2.94888698,222.07,222.01,34.48888698]
[1759369184507,2.94888698,222.07,222.01,35.16888698]
[1759369184508,15.76150588,222.06,222.01,35.16888698]
[1759369184899,15.76150588,222.06,222.02,0.68]
[1759369185218,15.76150588,222.06,222.02,3.62888698]
[1759369185429,15.76150588,222.06,222.02,2.94888698]
[1759369185610,15.76150588,222.06,221.98,0.68]
[1759369185811,15.76150588,222.06,222.01,2.94888698]
[1759369186116,15.76150588,222.06,222.02,0.5]
[1759369186424,11.25821849,222.06,222.02,3.44888698]
[1759369187815,11.25821849,222.06,222.03,2.94888698]
[1759369188213,11.25821849,222.06,222.02,3.44888698]
[1759369188417,11.25821849,222.06,222.03,0.68]
[1759369188637,11.25821849,222.06,222.03,2.94888698]
[1759369189337,4.50308461,222.07,222.04,3.62888698]
[1759369189512,4.50308461,222.07,222.05,3.62888698]
[1759369189919,4.50308461,222.07,222.05,2.94888698]
[1759369190123,4.50308461,222.07,222.04,2.94888698]
[1759369190321,4.50308461,222.07,222.04,3.62888698]
[1759369190630,4.50308461,222.07,222.04,2.94888698]
[1759369191208,4.50308461,222.07,222.03,2.94888698]
[1759369191209,15.76079614,222.07,222.03,2.94888698]
[1759369191414,0.1,222.08,222.06,2.94888698]
[1759369191615,0.1,222.08,222.06,3.62888698]
[1759369191819,0.1,222.08,222.06,2.94888698]
[1759369192131,0.1,222.08,222.02,4.50408766]
[1759369192132,0.1,222.08,222.07,3.62888698]
[1759369192839,4.60288184,222.08,222.07,3.62888698]
[1759369193138,0.1,222.08,222.07,3.62888698]
[1759369194111,4.60288184,222.08,222.07,3.62888698]
[1759369195512,4.60288184,222.08,222.07,0.68]
[1759369197221,0.1,222.08,222.07,0.68]
[1759369197638,4.60288184,222.08,222.07,0.68]
[1759369198711,0.1,222.08,222.07,0.68]
[1759369199340,4.60288184,222.08,222.07,0.68]
[1759369201242,4.60288184,222.08,222.04,31.54]
[1759369201541,4.60288184,222.08,222.05,0.69]
[1759369201716,4.60288651,222.08,222.06,0.69]
[1759369202737,4.60288651,222.08,222.02,0.69]
[1759369202738,7.55177349,222.08,222.02,0.69]
[1759369203044,7.55177349,222.08,222.03,31.54]
[1759369203222,2.94888698,222.07,222.04,0.69]
[1759369203425,7.55177349,222.08,222.03,31.54]
[1759369203622,7.55177349,222.08,222.04,0.69]
[1759369204222,7.55177349,222.08,222.05,0.69]
[1759369204625,4.60288651,222.08,222.05,0.69]
[1759369204823,7.55177349,222.08,222.03,32.23]
[1759369205044,2.94888698,222.05,221.99,0.69]
[1759369205245,7.45278111,222.04,221.99,32.23]
[1759369205453,4.50389413,222.04,222.0,0.69]
[1759369205749,4.50389413,222.04,222.01,0.69]
[1759369206329,4.50389413,222.04,222.02,0.69]
[1759369206939,4.50389413,222.04,221.99,34.48888698]
[1759369207127,4.50389413,222.04,222.0,0.69]
[1759369207443,4.5034902,222.05,222.01,0.69]
[1759369207629,4.5034902,222.05,222.02,0.69]
[1759369208244,0.1,222.08,222.03,0.69]
[1759369208431,0.1,222.08,222.05,2.94888698]
[1759369208634,0.1,222.08,222.06,0.69]
[1759369209139,0.1,222.08,222.05,0.69]
[1759369209643,4.60292927,222.08,222.04,34.48888698]
[1759369209949,4.60292927,222.08,222.05,3.63888698]
[1759369210153,0.1,222.08,222.06,3.63888698]
[1759369210354,0.1,222.08,222.07,0.69]
[1759369210734,0.1,222.08,222.04,31.54]
[1759369210735,0.1,222.08,222.05,4.13888698]
[1759369211063,0.1,222.08,222.06,0.69]
[1759369211552,0.1,222.08,222.07,0.69]
[1759369213634,0.1,222.08,222.07,5.19308461]
[1759369213831,0.1,222.08,222.07,0.69]
[1759369214934,0.1,222.08,222.07,3.63888698]
[1759369215132,0.1,222.08,222.07,8.14197159]
[1759369215536,0.1,222.08,222.07,21.6655364]
[1759369215741,0.1,222.08,222.07,22.1655364]
[1759369216143,0.1,222.08,222.07,30.37744777]
[1759369216441,0.1,222.08,222.07,22.44985954]
[1759369217249,0.1,222.08,222.07,19.50097256]
[1759369217452,0.1,222.08,222.07,22.1655364]
[1759369217761,0.1,222.08,222.07,35.67888698]
[1759369217940,0.1,222.08,222.07,40.18197159]
[1759369221460,0.1,222.08,222.07,3.44888698]
[1759369221757,0.1,222.08,222.07,32.02]
[1759369221941,0.1,222.08,222.07,32.72]
[1759369222558,0.1,222.08,222.07,32.02]
[1759369222766,0.1,222.08,222.07,32.72]
[1759369223649,0.1,222.08,222.07,35.66888698]
[1759369223963,0.1,222.08,222.07,40.17197159]
[1759369228352,0.1,222.08,222.07,39.10677656]
[1759369229687,0.1,222.08,222.07,62.07479165]
[1759369229864,0.1,222.08,222.07,63.20647038]
[1759369230180,0.13,222.13,222.1,20.8]
[1759369230473,0.13,222.13,222.12,1.88369195]
[1759369230681,0.13,222.13,222.12,2.53369195]
[1759369230978,0.13,222.13,222.12,2.81801509]
[1759369231347,0.13,222.13,222.12,13.87321861]
[1759369231673,0.13,222.13,222.12,13.58889547]
[1759369231846,0.13,222.13,222.1,23.33369195]
[1759369232052,0.13,222.13,222.11,32.17]
[1759369232372,0.13,222.13,222.11,31.52]
[1759369232574,0.13,222.13,222.12,31.52]
[1759369232779,4.63187979,222.13,222.1,4.50128104]
[1759369232975,4.63187979,222.13,222.07,2.38369195]
[1759369233275,4.63187979,222.13,222.08,31.52]
[1759369234655,4.63187979,222.13,222.08,32.17]
[1759369235263,4.63187979,222.13,222.08,31.52]
[1759369236098,4.63187979,222.13,222.08,32.17]
[1759369236753,4.63187979,222.13,222.09,0.65]
[1759369239384,1.88369195,222.12,222.08,31.52]
[1759369239554,4.63187979,222.13,222.08,31.52]
[1759369239756,0.13,222.13,222.09,0.65]
[1759369240782,4.63205217,222.13,222.09,0.65]
[1759369241369,4.63205217,222.13,222.08,31.52]
[1759369241882,0.13,222.13,222.09,0.65]
[1759369242063,0.13,222.13,222.1,0.65]
[1759369242567,0.13,222.13,222.11,0.65]
[1759369242885,0.13,222.13,222.08,36.02286064]
[1759369243086,0.13,222.13,222.09,0.65]
[1759369244378,4.63192353,222.13,222.09,0.65]
[1759369244559,4.63192353,222.13,222.1,0.65]
[1759369244971,4.63192353,222.13,222.08,31.52]
[1759369245186,4.63192353,222.13,222.09,0.65]
[1759369245865,0.13,222.13,222.1,0.65]
[1759369246069,0.13,222.13,222.11,0.65]
[1759369246383,0.13,222.13,222.08,36.02280964]
[1759369246568,0.13,222.13,222.09,0.65]
[1759369246768,0.13,222.13,222.1,0.65]
[1759369247978,4.63192092,222.13,222.1,0.65]
[1759369248179,4.63192092,222.13,222.08,32.17]
[1759369248376,4.63192092,222.13,222.09,0.65]
[1759369248786,6.51561287,222.13,222.07,1.15]
[1759369248989,6.51561287,222.13,222.08,31.52]
[1759369249185,6.51561287,222.13,222.08,32.17]
[1759369249486,17.77028355,222.13,222.08,31.52]
[1759369249662,17.77028355,222.13,222.08,32.17]
[1759369250489,17.77028355,222.13,222.08,31.52]
[1759369250882,1.88369195,222.11,222.07,0.5]
[1759369251086,10.87647521,222.12,222.04,31.52]
[1759369251285,6.38581197,222.12,222.05,2.53369195]
[1759369251593,4.50212002,222.12,222.06,0.65]
[1759369251894,4.631872,222.13,222.06,0.65]
[1759369254070,1.88369195,222.12,222.05,1.88369195]
[1759369254479,1.88369195,222.12,222.04,31.52]
[1759369254692,1.88369195,222.12,222.05,0.66]
[1759369254888,4.631872,222.13,222.05,2.54369195]
[1759369255208,4.631872,222.13,222.06,0.66]
[1759369255707,4.631872,222.13,222.08,1.88369195]
[1759369255895,4.631872,222.13,222.08,2.54369195]
[1759369256273,0.13,222.13,222.09,2.54369195]
[1759369256479,0.13,222.13,222.11,1.88369195]
[1759369257084,0.13,222.13,222.11,0.66]
[1759369257289,0.13,222.13,222.1,1.88369195]
[1759369257481,0.13,222.13,222.1,2.54369195]
[1759369258893,4.63192292,222.13,222.09,31.52]
[1759369259098,4.63192292,222.13,222.09,0.66]
[1759369259302,4.63192292,222.13,222.08,33.40369195]
[1759369259595,4.63192292,222.13,222.1,0.66]
[1759369260001,4.63192292,222.13,222.08,34.06369195]
[1759369260200,4.63192292,222.13,222.09,0.66]
[1759369260402,4.63192292,222.13,222.08,33.40369195]
[1759369260602,4.63192292,222.13,222.1,0.66]
[1759369261706,4.63192292,222.13,222.08,33.40369195]
[1759369261919,4.63192292,222.13,222.08,34.06369195]
[1759369262215,4.63192292,222.13,222.09,0.66]
[1759369263217,0.13,222.13,222.07,36.02289911]
[1759369263392,0.13,222.13,222.1,0.66]
[1759369263593,0.13,222.13,222.1,2.54369195]
[1759369263916,0.13,222.13,222.11,0.66]
[1759369264287,0.13,222.13,222.12,1.88369195]
[1759369264600,0.13,222.13,222.12,2.54369195]
[1759369265208,0.13,222.13,222.12,34.06369195]
[1759369266290,87.41467268,222.16,222.12,38.5657629]
[1759369266488,4.50003879,222.23,222.15,1.88369195]
[1759369266687,18.40845682,222.23,222.16,32.2]
[1759369267008,18.40845682,222.23,222.17,0.66]
[1759369267390,15.376514,222.23,222.17,0.66]
[1759369268022,4.50003879,222.23,222.17,0.66]
[1759369268408,112.7143195,222.24,222.17,7.04474791]
[1759369268724,112.7143195,222.24,222.18,0.66]
[1759369270220,1.88369195,222.23,222.16,31.54]
[1759369270531,2.01369195,222.23,222.16,31.54]
[1759369270824,2.01369195,222.23,222.16,32.2]
[1759369271195,4.500045,222.22,222.16,32.2]
[1759369271395,4.500045,222.22,222.17,0.66]
[1759369271731,4.500045,222.22,222.18,0.66]
[1759369272094,4.500045,222.22,222.16,32.2]
[1759369274100,1.88369195,222.21,222.14,0.66]
[1759369274297,1.88369195,222.21,222.15,31.52]
[1759369274993,1.88369195,222.21,222.15,32.18]
[1759369275326,1.88369195,222.21,222.16,0.66]
[1759369275526,4.50045004,222.2,222.15,31.52]
[1759369275710,6.38414199,222.2,222.15,32.18]
[1759369276030,6.51414199,222.2,222.15,31.52]
[1759369276203,6.51414199,222.2,222.15,32.18]
[1759369276519,4.50045004,222.2,222.15,32.18]
[1759369276711,1.88369195,222.19,222.15,32.18]
[1759369277121,4.50085516,222.18,222.15,32.18]
[1759369277318,4.50085516,222.18,222.15,31.52]
[1759369278097,87.41467268,222.21,222.16,0.66]
[1759369278296,4.50045004,222.2,222.17,0.66]
[1759369279313,6.38414199,222.2,222.15,32.18]
[1759369279514,6.38414199,222.2,222.16,0.66]
[1759369279824,6.38414199,222.2,222.17,0.66]
[1759369280015,87.41467268,222.21,222.17,0.66]
[1759369282323,11.24732705,222.28,222.17,5.1610351]
[1759369282623,10.87647521,222.27,222.18,2.60369195]
[1759369282830,12.76016716,222.27,222.19,0.72]
[1759369283022,15.78711527,222.27,222.19,0.72]
[1759369283224,20.28614797,222.27,222.19,0.72]
[1759369283825,31.53372973,222.27,222.19,0.72]
[1759369284006,1.88369195,222.25,222.19,0.72]
[1759369285133,2.01369195,222.25,222.19,0.72]
[1759369285613,4.49964002,222.24,222.19,0.72]
[1759369285932,2.01369195,222.23,222.17,32.18]
[1759369286507,1.88369195,222.23,222.17,32.18]
[1759369286714,4.500045,222.22,222.17,32.18]
[1759369287012,6.38373695,222.22,222.18,0.68]
[1759369288303,7.44172194,222.23,222.18,0.68]
[1759369288536,4.4998425,222.23,222.18,0.68]
[1759369288729,7.44172194,222.23,222.19,0.68]
[1759369289435,4.4998425,222.23,222.19,0.68]
[1759369289637,7.44172194,222.23,222.19,0.68]
[1759369290411,4.4998425,222.23,222.2,0.68]
[1759369290610,7.44172194,222.23,222.2,0.68]
[1759369291231,7.44172194,222.23,222.18,0.68]
[1759369291434,7.44172194,222.23,222.19,0.68]
[1759369292343,4.4998425,222.23,222.19,0.68]
[1759369292812,4.4998425,222.23,222.2,0.68]
[1759369293931,4.49940019,222.26,222.2,0.68]
[1759369295043,4.49940019,222.26,222.2,3.62187944]
[1759369295249,4.49940019,222.26,222.21,0.68]
[1759369295823,4.4990327,222.27,222.21,0.68]
[1759369297232,7.44091214,222.27,222.21,0.68]
[1759369297420,4.4990327,222.27,222.21,0.68]
[1759369297622,4.4990327,222.27,222.22,2.94187944]
[1759369297925,0.1,222.29,222.23,0.68]
[1759369298953,4.59866261,222.29,222.23,0.68]
[1759369299319,4.59866261,222.29,222.23,5.17984042]
[1759369299320,4.09866261,222.29,222.23,5.17984042]
[1759369299624,4.09866261,222.29,222.24,0.68]
[1759369300035,4.09866261,222.29,222.25,0.68]
[1759369300939,0.13,222.28,222.22,0.68]
[1759369301725,13.94835465,222.28,222.21,2.94187944]
[1759369302049,13.81835465,222.28,222.22,0.68]
[1759369302624,15.3452324,222.29,222.22,0.68]
[1759369303225,3.07187944,222.28,222.2,0.68]
[1759369303525,3.07187944,222.28,222.2,3.62187944]
[1759369303526,13.94835465,222.28,222.2,3.62187944]
[1759369303725,13.94835465,222.28,222.21,0.68]
[1759369303937,10.87647521,222.27,222.21,0.68]
[1759369304862,3.07187944,222.26,222.19,0.68]
[1759369305023,4.49943757,222.25,222.19,0.68]
[1759369306150,3.07187944,222.24,222.17,0.68]
[1759369307146,7.44172194,222.23,222.17,0.68]
[1759369307347,4.4998425,222.23,222.17,0.68]
[1759369308134,4.49964002,222.24,222.17,5.18099769]
[1759369308333,4.49964002,222.24,222.18,0.68]
[1759369308529,4.49930419,222.26,222.18,0.68]
[1759369308729,7.57118363,222.26,222.18,0.68]
[1759369309458,4.62930419,222.26,222.18,0.68]
[1759369309652,7.57118363,222.26,222.18,0.68]
[1759369309856,18.81927145,222.26,222.18,5.18082841]
[1759369310155,0.13,222.25,222.17,2.94187944]
[1759369310353,18.68927145,222.26,222.16,0.68]
[1759369310354,2.94187944,222.24,222.16,0.68]
[1759369310559,3.07187944,222.24,222.16,5.18124875]
[1759369310738,3.07187944,222.24,222.17,0.68]
[1759369310938,0.13,222.24,222.17,0.68]
[1759369311141,2.94187944,222.24,222.17,0.68]
[1759369312038,4.4998425,222.23,222.17,5.18105751]
[1759369312238,2.94187944,222.24,222.18,0.68]
[1759369313076,3.02965478,222.26,222.19,2.94187944]
[1759369313262,4.49925363,222.26,222.19,0.68]
[1759369313570,18.90699623,222.26,222.19,0.68]
[1759369313744,2.94187944,222.25,222.19,0.68]
[1759369314155,4.49964002,222.24,222.19,0.68]
[1759369314356,4.49964002,222.24,222.2,0.68]
[1759369316163,4.49943757,222.25,222.2,0.68]
[1759369316967,4.49943757,222.25,222.21,0.68]
[1759369317271,4.49943757,222.25,222.18,7.44272563]
[1759369317445,4.49943757,222.25,222.22,0.68]
[1759369318847,4.49943757,222.25,222.18,7.44272563]
[1759369319063,4.49943757,222.25,222.2,0.68]
[1759369319247,4.49943757,222.25,222.21,0.68]
[1759369319866,4.49943757,222.25,222.22,0.68]
[1759369320256,4.49943757,222.25,222.23,0.68]
[1759369320571,4.49943757,222.25,222.19,2.94187944]
[1759369320772,4.4990327,222.27,222.23,0.68]
[1759369322266,7.44091214,222.27,222.23,0.68]
[1759369322571,3.02965478,222.26,222.23,0.68]
[1759369322757,3.02965478,222.26,222.21,0.68]
[1759369322955,18.6884939,222.27,222.21,0.68]
[1759369322956,5.97153422,222.27,222.21,0.68]
[1759369323154,5.97375282,222.27,222.21,0.68]
[1759369323574,10.47287618,222.27,222.21,0.68]
[1759369324444,7.53099674,222.27,222.21,0.68]
[1759369325271,7.53180311,222.27,222.21,0.68]
[1759369325851,21.72126431,222.27,222.21,0.68]
[1759369327575,10.47368255,222.27,222.21,0.68]
[1759369327777,7.4410028,222.27,222.21,0.68]
[1759369327967,7.4410028,222.27,222.21,5.18062597]
[1759369328173,4.49912336,222.27,222.22,0.68]
[1759369328355,4.49912336,222.27,222.23,0.68]
[1759369328755,7.53152996,222.28,222.24,0.68]
[1759369329155,7.53152996,222.28,222.25,0.68]
[1759369329471,4.49885021,222.28,222.25,0.68]
[1759369329867,4.49885021,222.28,222.26,0.68]
[1759369330269,4.49885021,222.28,222.25,0.68]
[1759369330478,4.49885021,222.28,222.23,7.44250541]
[1759369330479,4.49885021,222.28,222.26,0.68]
[1759369330979,7.5313285,222.29,222.26,0.68]
[1759369332883,7.5313285,222.29,222.27,0.68]
[1759369333262,7.5313285,222.29,222.23,9.00046319]
[1759369333460,7.5313285,222.29,222.23,4.49983722]
[1759369333887,7.5313285,222.29,222.24,11.25070135]
[1759369334283,7.5313285,222.29,222.23,4.49983722]
[1759369334683,3.03267975,222.29,222.23,11.25070135]
[1759369335286,3.03267975,222.29,222.23,11.93070135]
[1759369335585,7.53138895,222.29,222.23,11.93070135]
[1759369335782,7.53138895,222.29,222.24,0.68]
[1759369335966,7.53138895,222.29,222.23,11.25070135]
[1759369335967,10.47326839,222.29,222.25,0.68]
[1759369336167,10.47326839,222.29,222.26,0.68]
[1759369337285,4.4987092,222.29,222.26,0.68]
[1759369337481,98.81689945,222.3,222.26,0.68]
[1759369337784,98.81689945,222.3,222.27,0.68]
[1759369337983,98.81689945,222.3,222.24,15.75028658]
[1759369338173,98.81689945,222.3,222.25,0.68]
[1759369338669,103.31538467,222.3,222.26,0.68]
[1759369338864,103.50538467,222.3,222.22,7.44190195]
[1759369339069,103.50538467,222.3,222.24,13.51503547]
[1759369339070,103.31538467,222.3,222.24,13.51503547]
[1759369339270,103.31538467,222.3,222.24,14.19503547]
[1759369339671,103.31538467,222.3,222.25,0.68]
[1759369339672,3.03083815,222.29,222.25,0.68]
[1759369339987,3.03083815,222.29,222.22,7.44190195]
[1759369339988,7.5295926,222.29,222.26,0.68]
[1759369340688,7.5295926,222.29,222.24,13.51503547]
[1759369340689,4.49875445,222.29,222.24,13.51503547]
[1759369340899,0.19,222.28,222.24,13.51503547]
[1759369341236,10.4713111,222.29,222.24,0.72]
[1759369341693,21.71788089,222.29,222.24,0.72]
[1759369341992,4.49923513,222.26,222.21,0.72]
[1759369342291,4.49923513,222.26,222.22,0.72]
[1759369342674,4.49923513,222.26,222.23,0.72]
[1759369342874,4.49923513,222.26,222.21,0.72]
[1759369343093,4.49923513,222.26,222.22,0.72]
[1759369343290,4.49923513,222.26,222.2,13.51808043]
[1759369343488,4.49923513,222.26,222.21,0.72]
[1759369343699,4.49923513,222.26,222.2,13.51808043]
[1759369343700,4.49923513,222.26,222.22,0.69]
[1759369343891,4.49923513,222.26,222.2,18.01851991]
[1759369344090,4.49923513,222.26,222.21,0.69]
[1759369344291,4.49923513,222.26,222.21,3.63187944]
[1759369344499,4.49923513,222.26,222.22,0.69]
[1759369344697,4.49898005,222.28,222.23,0.69]
[1759369344901,4.49898005,222.28,222.24,0.69]
[1759369345082,103.31550553,222.3,222.24,0.69]
[1759369350281,98.81689945,222.3,222.25,1.88134299]
[1759369350480,98.81689945,222.3,222.27,1.88134299]
[1759369350681,98.81689945,222.3,222.27,2.57134299]
[1759369352304,0.1,222.31,222.28,0.69]
[1759369352514,0.1,222.31,222.26,14.20381787]
[1759369352814,4.59830082,222.31,222.21,25.300247]
[1759369353015,4.59830082,222.31,222.26,3.02894533]
[1759369353314,0.1,222.31,222.27,0.69]
[1759369353503,0.1,222.31,222.28,0.69]
[1759369353705,0.1,222.31,222.28,2.57134299]
[1759369354019,4.59825931,222.31,222.28,2.57134299]
[1759369354191,4.59825931,222.31,222.28,1.88134299]
[1759369354389,0.1,222.31,222.29,0.69]
[1759369354614,0.1,222.31,222.28,1.88134299]
[1759369354832,0.1,222.31,222.28,2.57134299]
[1759369355026,4.5982624,222.31,222.28,2.57134299]
[1759369355322,0.1,222.31,222.29,0.69]
[1759369355521,0.1,222.31,222.24,4.49964002]
[1759369355821,0.1,222.31,222.29,0.69]
[1759369357500,0.1,222.31,222.27,0.69]
[1759369357698,0.1,222.31,222.28,0.69]
[1759369358093,0.1,222.31,222.29,0.69]
[1759369363130,0.1,222.31,222.3,0.69]
[1759369363324,0.1,222.31,222.28,0.69]
[1759369363628,0.1,222.31,222.29,0.69]
[1759369364814,0.1,222.31,222.27,8.99681964]
[1759369365015,0.1,222.31,222.3,0.69]
[1759369365221,0.1,222.31,222.27,6.37915146]
[1759369365521,0.1,222.31,222.28,0.69]
[1759369365930,0.1,222.31,222.27,6.37915146]
[1759369366127,0.1,222.31,222.29,0.69]
[1759369366614,0.1,222.31,222.3,0.69]
[1759369372523,0.1,222.31,222.3,5.18765249]
[1759369375044,0.1,222.31,222.29,1.88134299]
[1759369375345,0.1,222.31,222.29,5.16769179]
[1759369375540,0.1,222.31,222.3,0.67]
[1759369377342,0.1,222.31,222.3,5.16842555]
[1759369377638,0.1,222.31,222.3,12.69504759]
[1759369378541,3.02906053,222.39,222.3,23.94111146]
[1759369378771,0.29,222.45,222.37,1.88134299]
[1759369378938,0.29,222.45,222.31,0.95432314]
[1759369378939,20.8,222.43,222.38,2.55134299]
[1759369379238,3.02808722,222.42,222.39,0.67]
[1759369379736,7.52414395,222.42,222.39,0.67]
[1759369379943,7.523856,222.44,222.41,1.88134299]
[1759369380130,3.02808722,222.45,222.42,0.67]
[1759369380440,3.02808722,222.44,222.4,0.67]
[1759369380620,0.29,222.44,222.38,0.67]
[1759369380937,7.5235186,222.45,222.39,1.88134299]
[1759369381134,4.49579643,222.43,222.38,13.50651689]
[1759369381339,4.78579643,222.43,222.38,14.17651689]
[1759369381637,4.49579643,222.43,222.38,13.50651689]
[1759369381841,4.49579643,222.43,222.39,0.67]
[1759369382141,4.49579643,222.43,222.4,0.67]